Workbook

Sheet 家計簿表紙
A1: 締め日 | B1: =IF(H1="","",YEAR(H1)) ->  | C1: 年 | D1: =IF(H1="","",MONTH(H1)) ->  | E1: 月 | F1: =IF(H1="","",DAY(H1)) ->  | G1: 日 | H1: =IF(第1週目!$B$2="","",IF(OR(AND(D3=1,F3=30),AND(D3=1,F3=31)),(DATE(YEAR(H3),MONTH(H3)+2,1)-1),DATE(YEAR(H3),MONTH(H3)+1,DAY(H3)-1))) -> 
A3: 開始年月日 | C3: 年 | E3: 月 | G3: 日 | H3: =IF(OR(B3="",D3="",F3=""),"",DATE($B$3,$D$3,$F$3)) -> 

Sheet 収支表
B1: ※薄い灰色のセルは計算式が入っています。何も入力しないでください。
B2: =家計簿表紙!B3 -> 0 | C2: 年 | D2: =家計簿表紙!D3 -> 0 | E2: 月分収支表
B4: 今月自由に使えるお金 | G4: =C14-H21-M30-C30 -> 0 | H4: 円 | J4: 今月の収支 | M4: =C14-I21-M30-D30-H30 -> 0 | N4: 円
B5: （A-B（予算）-C-D(予算）) | J5: （A-B（実際）-C-D(実際）-E)
B7: 収入 A | G7: 支出Ⅰ B (流動性ありの支出) | L7: 支出Ⅱ C (固定金額支出)
B8: 項目 | C8: 金額 | D8: 月日 | G8: 項目 | H8: 予算額 | I8: 実際額 | J8: 月日 | L8: 項目 | M8: 金額 | N8: 月日
B9: 給料（夫）
B10: 給料（妻）
B14: 合計 | C14: =SUM(C9:C13) -> ¥0
B20: 特別支出 D | G20: 貯蓄
B21: 項目 | C21: 予算額 | D21: 実際額 | E21: 月日 | G21: 合計 | H21: =SUM(H9:H20) -> ¥0 | I21: =SUM(I9:I20) -> ¥0
E22: 2008-11-26
B23: パパ誕生日 | G23: 週間集計表 E
E24: 2008-11-25 | G24: 項目 | H24: 金額 | I24: 残高
E25: 2008-11-25 | G25: 第1週目 | H25: =第1週目!P35 -> ¥0 | I25: =G4-H25 -> ¥0
E26: 2008-12-09 | G26: 第2週目 | H26: =第2週目!P35 -> ¥0 | I26: =G4-(H25+H26) -> ¥0
G27: 第3週目 | H27: =第3週目!P35 -> ¥0 | I27: =G4-(H25+H26+H27) -> ¥0
G28: 第4週目 | H28: =第4週目!P35 -> ¥0 | I28: =G4-(H25+H26+H27+H28) -> ¥0
G29: 第5週目 | H29: =第5週目!H35 -> ¥0 | I29: =G4-(H25+H26+H27+H28+H29) -> ¥0
B30: 合計 | C30: =SUM(C22:C29) -> ¥0 | D30: =SUM(D22:D29) -> ¥0 | G30: 合計 | H30: =SUM(H25:H29) -> ¥0 | L30: 合計 | M30: =SUM(M9:M29) -> ¥0

Sheet 第1週目
A1: 第 1 週目
B2: =IF(OR(家計簿表紙!$B$3="",家計簿表紙!$D$3="",家計簿表紙!$F$3=""),"",DATE(家計簿表紙!$B$3,家計簿表紙!$D$3,家計簿表紙!$F$3)) ->  | C2: =TEXT(B2,"(aaaa)") ->  | D2: =IF($B$2="","",IF(B2<DATE(家計簿表紙!$B$1,家計簿表紙!$D$1,家計簿表紙!$F$1),B2+1,"")) ->  | E2: =TEXT(D2,"(aaaa)") ->  | F2: =IF($B$2="","",IF(D2<DATE(家計簿表紙!$B$1,家計簿表紙!$D$1,家計簿表紙!$F$1),D2+1,"")) ->  | G2: =TEXT(F2,"(aaaa)") ->  | H2: =IF($B$2="","",IF(F2<DATE(家計簿表紙!$B$1,家計簿表紙!$D$1,家計簿表紙!$F$1),F2+1,"")) ->  | I2: =TEXT(H2,"(aaaa)") ->  | J2: =IF($B$2="","",IF(H2<DATE(家計簿表紙!$B$1,家計簿表紙!$D$1,家計簿表紙!$F$1),H2+1,"")) ->  | K2: =TEXT(J2,"(aaaa)") ->  | L2: =IF($B$2="","",IF(J2<DATE(家計簿表紙!$B$1,家計簿表紙!$D$1,家計簿表紙!$F$1),J2+1,"")) ->  | M2: =TEXT(L2,"(aaaa)") ->  | N2: =IF($B$2="","",IF(L2<DATE(家計簿表紙!$B$1,家計簿表紙!$D$1,家計簿表紙!$F$1),L2+1,"")) ->  | O2: =TEXT(N2,"(aaaa)") ->  | P2: 集計
B3: 内容 | C3: 金額 | D3: 内容 | E3: 金額 | F3: 内容 | G3: 金額 | H3: 内容 | I3: 金額 | J3: 内容 | K3: 金額 | L3: 内容 | M3: 金額 | N3: 内容 | O3: 金額
A4: 食費
A13: 小計 | C13: =SUM(C4:C12) -> ¥0 | E13: =SUM(E4:E12) -> ¥0 | G13: =SUM(G4:G12) -> ¥0 | I13: =SUM(I4:I12) -> ¥0 | K13: =SUM(K4:K12) -> ¥0 | M13: =SUM(M4:M12) -> ¥0 | O13: =SUM(O4:O12) -> ¥0 | P13: =SUM(C13:O13) -> ¥0
A14: 日用雑貨
A21: 小計 | C21: =SUM(C14:C20) -> ¥0 | E21: =SUM(E14:E20) -> ¥0 | G21: =SUM(G14:G20) -> ¥0 | I21: =SUM(I14:I20) -> ¥0 | K21: =SUM(K14:K20) -> ¥0 | M21: =SUM(M14:M20) -> ¥0 | O21: =SUM(O14:O20) -> ¥0 | P21: =SUM(C21:O21) -> ¥0
A22: 子供費
A27: 小計 | C27: =SUM(C22:C26) -> ¥0 | E27: =SUM(E22:E26) -> ¥0 | G27: =SUM(G22:G26) -> ¥0 | I27: =SUM(I22:I26) -> ¥0 | K27: =SUM(K22:K26) -> ¥0 | M27: =SUM(M22:M26) -> ¥0 | O27: =SUM(O22:O26) -> ¥0 | P27: =SUM(C27:O27) -> ¥0
A28: 特別出費
A33: 小計 | C33: =SUM(C28:C32) -> ¥0 | E33: =SUM(E28:E32) -> ¥0 | G33: =SUM(G28:G32) -> ¥0 | I33: =SUM(I28:I32) -> ¥0 | K33: =SUM(K28:K32) -> ¥0 | M33: =SUM(M28:M32) -> ¥0 | O33: =SUM(O28:O32) -> ¥0 | P33: =SUM(C33:O33) -> ¥0
A34: 臨時収入 | P34: =SUM(C34:O34) -> ¥0
A35: 支出合計 | C35: =SUM(C13,C21,C27,C33,-C34) -> ¥0 | E35: =SUM(E13,E21,E27,E33,-E34) -> ¥0 | G35: =SUM(G13,G21,G27,G33,-G34) -> ¥0 | I35: =SUM(I13,I21,I27,I33,-I34) -> ¥0 | K35: =SUM(K13,K21,K27,K33,-K34) -> ¥0 | M35: =SUM(M13,M21,M27,M33,-M34) -> ¥0 | O35: =SUM(O13,O21,O27,O33,-O34) -> ¥0 | P35: =SUM(C35:O35) -> ¥0
A36: メモ

Sheet 第2週目
A1: 第 2 週目
B2: =IF(第1週目!$B$2="","",IF(第1週目!N2<DATE(家計簿表紙!$B$1,家計簿表紙!$D$1,家計簿表紙!$F$1),第1週目!N2+1,"")) ->  | C2: =TEXT(B2,"(aaaa)") ->  | D2: =IF(第1週目!$B$2="","",IF(B2<DATE(家計簿表紙!$B$1,家計簿表紙!$D$1,家計簿表紙!$F$1),B2+1,"")) ->  | E2: =TEXT(D2,"(aaaa)") ->  | F2: =IF(第1週目!$B$2="","",IF(D2<DATE(家計簿表紙!$B$1,家計簿表紙!$D$1,家計簿表紙!$F$1),D2+1,"")) ->  | H2: =IF(第1週目!$B$2="","",IF(F2<DATE(家計簿表紙!$B$1,家計簿表紙!$D$1,家計簿表紙!$F$1),F2+1,"")) ->  | J2: =IF(第1週目!$B$2="","",IF(H2<DATE(家計簿表紙!$B$1,家計簿表紙!$D$1,家計簿表紙!$F$1),H2+1,"")) ->  | L2: =IF(第1週目!$B$2="","",IF(J2<DATE(家計簿表紙!$B$1,家計簿表紙!$D$1,家計簿表紙!$F$1),J2+1,"")) ->  | N2: =IF(第1週目!$B$2="","",IF(L2<DATE(家計簿表紙!$B$1,家計簿表紙!$D$1,家計簿表紙!$F$1),L2+1,"")) ->  | P2: 集計
B3: 内容 | C3: 金額 | D3: 内容 | E3: 金額 | F3: 内容 | G3: 金額 | H3: 内容 | I3: 金額 | J3: 内容 | K3: 金額 | L3: 内容 | M3: 金額 | N3: 内容 | O3: 金額
A4: 食費
A13: 小計 | C13: =SUM(C4:C12) -> ¥0 | E13: =SUM(E4:E12) -> ¥0 | G13: =SUM(G4:G12) -> ¥0 | I13: =SUM(I4:I12) -> ¥0 | K13: =SUM(K4:K12) -> ¥0 | M13: =SUM(M4:M12) -> ¥0 | O13: =SUM(O4:O12) -> ¥0 | P13: =SUM(C13:O13) -> ¥0
A14: 日用雑貨
A21: 小計 | C21: =SUM(C14:C20) -> ¥0 | E21: =SUM(E14:E20) -> ¥0 | G21: =SUM(G14:G20) -> ¥0 | I21: =SUM(I14:I20) -> ¥0 | K21: =SUM(K14:K20) -> ¥0 | M21: =SUM(M14:M20) -> ¥0 | O21: =SUM(O14:O20) -> ¥0 | P21: =SUM(C21:O21) -> ¥0
A22: 子供費
A27: 小計 | C27: =SUM(C22:C26) -> ¥0 | E27: =SUM(E22:E26) -> ¥0 | G27: =SUM(G22:G26) -> ¥0 | I27: =SUM(I22:I26) -> ¥0 | K27: =SUM(K22:K26) -> ¥0 | M27: =SUM(M22:M26) -> ¥0 | O27: =SUM(O22:O26) -> ¥0 | P27: =SUM(C27:O27) -> ¥0
A28: 特別出費
A33: 小計 | C33: =SUM(C28:C32) -> ¥0 | E33: =SUM(E28:E32) -> ¥0 | G33: =SUM(G28:G32) -> ¥0 | I33: =SUM(I28:I32) -> ¥0 | K33: =SUM(K28:K32) -> ¥0 | M33: =SUM(M28:M32) -> ¥0 | O33: =SUM(O28:O32) -> ¥0 | P33: =SUM(C33:O33) -> ¥0
A34: 臨時収入 | P34: =SUM(C34:O34) -> ¥0
A35: 支出合計 | C35: =SUM(C13,C21,C27,C33,-C34) -> ¥0 | E35: =SUM(E13,E21,E27,E33,-E34) -> ¥0 | G35: =SUM(G13,G21,G27,G33,-G34) -> ¥0 | I35: =SUM(I13,I21,I27,I33,-I34) -> ¥0 | K35: =SUM(K13,K21,K27,K33,-K34) -> ¥0 | M35: =SUM(M13,M21,M27,M33,-M34) -> ¥0 | O35: =SUM(O13,O21,O27,O33,-O34) -> ¥0 | P35: =SUM(C35:O35) -> ¥0
A36: メモ

Sheet 第3週目
A1: 第 3 週目
B2: =IF(第2週目!$B$2="","",IF(第2週目!N2<DATE(家計簿表紙!$B$1,家計簿表紙!$D$1,家計簿表紙!$F$1),第2週目!N2+1,"")) ->  | C2: =TEXT(B2,"(aaaa)") ->  | D2: =IF($B$2="","",IF(B2<DATE(家計簿表紙!$B$1,家計簿表紙!$D$1,家計簿表紙!$F$1),B2+1,"")) ->  | E2: =TEXT(D2,"(aaaa)") ->  | F2: =IF($B$2="","",IF(D2<DATE(家計簿表紙!$B$1,家計簿表紙!$D$1,家計簿表紙!$F$1),D2+1,"")) ->  | G2: =TEXT(F2,"(aaaa)") ->  | H2: =IF($B$2="","",IF(F2<DATE(家計簿表紙!$B$1,家計簿表紙!$D$1,家計簿表紙!$F$1),F2+1,"")) ->  | I2: =TEXT(H2,"(aaaa)") ->  | J2: =IF($B$2="","",IF(H2<DATE(家計簿表紙!$B$1,家計簿表紙!$D$1,家計簿表紙!$F$1),H2+1,"")) ->  | K2: =TEXT(J2,"(aaaa)") ->  | L2: =IF($B$2="","",IF(J2<DATE(家計簿表紙!$B$1,家計簿表紙!$D$1,家計簿表紙!$F$1),J2+1,"")) ->  | M2: =TEXT(L2,"(aaaa)") ->  | N2: =IF($B$2="","",IF(L2<DATE(家計簿表紙!$B$1,家計簿表紙!$D$1,家計簿表紙!$F$1),L2+1,"")) ->  | O2: =TEXT(N2,"(aaaa)") ->  | P2: 集計
B3: 内容 | C3: 金額 | D3: 内容 | E3: 金額 | F3: 内容 | G3: 金額 | H3: 内容 | I3: 金額 | J3: 内容 | K3: 金額 | L3: 内容 | M3: 金額 | N3: 内容 | O3: 金額
A4: 食費
A13: 小計 | C13: =SUM(C4:C12) -> ¥0 | E13: =SUM(E4:E12) -> ¥0 | G13: =SUM(G4:G12) -> ¥0 | I13: =SUM(I4:I12) -> ¥0 | K13: =SUM(K4:K12) -> ¥0 | M13: =SUM(M4:M12) -> ¥0 | O13: =SUM(O4:O12) -> ¥0 | P13: =SUM(C13:O13) -> ¥0
A14: 日用雑貨
A21: 小計 | C21: =SUM(C14:C20) -> ¥0 | E21: =SUM(E14:E20) -> ¥0 | G21: =SUM(G14:G20) -> ¥0 | I21: =SUM(I14:I20) -> ¥0 | K21: =SUM(K14:K20) -> ¥0 | M21: =SUM(M14:M20) -> ¥0 | O21: =SUM(O14:O20) -> ¥0 | P21: =SUM(C21:O21) -> ¥0
A22: 子供費
A27: 小計 | C27: =SUM(C22:C26) -> ¥0 | E27: =SUM(E22:E26) -> ¥0 | G27: =SUM(G22:G26) -> ¥0 | I27: =SUM(I22:I26) -> ¥0 | K27: =SUM(K22:K26) -> ¥0 | M27: =SUM(M22:M26) -> ¥0 | O27: =SUM(O22:O26) -> ¥0 | P27: =SUM(C27:O27) -> ¥0
A28: 特別出費
A33: 小計 | C33: =SUM(C28:C32) -> ¥0 | E33: =SUM(E28:E32) -> ¥0 | G33: =SUM(G28:G32) -> ¥0 | I33: =SUM(I28:I32) -> ¥0 | K33: =SUM(K28:K32) -> ¥0 | M33: =SUM(M28:M32) -> ¥0 | O33: =SUM(O28:O32) -> ¥0 | P33: =SUM(C33:O33) -> ¥0
A34: 臨時収入 | P34: =SUM(C34:O34) -> ¥0
A35: 支出合計 | C35: =SUM(C13,C21,C27,C33,-C34) -> ¥0 | E35: =SUM(E13,E21,E27,E33,-E34) -> ¥0 | G35: =SUM(G13,G21,G27,G33,-G34) -> ¥0 | I35: =SUM(I13,I21,I27,I33,-I34) -> ¥0 | K35: =SUM(K13,K21,K27,K33,-K34) -> ¥0 | M35: =SUM(M13,M21,M27,M33,-M34) -> ¥0 | O35: =SUM(O13,O21,O27,O33,-O34) -> ¥0 | P35: =SUM(C35:O35) -> ¥0
A36: メモ

Sheet 第4週目
A1: 第 4 週目
B2: =IF(第3週目!$B$2="","",IF(第3週目!N2<DATE(家計簿表紙!$B$1,家計簿表紙!$D$1,家計簿表紙!$F$1),第3週目!N2+1,"")) ->  | C2: =TEXT(B2,"(aaaa)") ->  | D2: =IF($B$2="","",IF(B2<DATE(家計簿表紙!$B$1,家計簿表紙!$D$1,家計簿表紙!$F$1),B2+1,"")) ->  | E2: =TEXT(D2,"(aaaa)") ->  | F2: =IF($B$2="","",IF(D2<DATE(家計簿表紙!$B$1,家計簿表紙!$D$1,家計簿表紙!$F$1),D2+1,"")) ->  | G2: =TEXT(F2,"(aaaa)") ->  | H2: =IF($B$2="","",IF(F2<DATE(家計簿表紙!$B$1,家計簿表紙!$D$1,家計簿表紙!$F$1),F2+1,"")) ->  | I2: =TEXT(H2,"(aaaa)") ->  | J2: =IF($B$2="","",IF(H2<DATE(家計簿表紙!$B$1,家計簿表紙!$D$1,家計簿表紙!$F$1),H2+1,"")) ->  | K2: =TEXT(J2,"(aaaa)") ->  | L2: =IF($B$2="","",IF(J2<DATE(家計簿表紙!$B$1,家計簿表紙!$D$1,家計簿表紙!$F$1),J2+1,"")) ->  | M2: =TEXT(L2,"(aaaa)") ->  | N2: =IF($B$2="","",IF(L2<DATE(家計簿表紙!$B$1,家計簿表紙!$D$1,家計簿表紙!$F$1),L2+1,"")) ->  | O2: =TEXT(N2,"(aaaa)") ->  | P2: 集計
B3: 内容 | C3: 金額 | D3: 内容 | E3: 金額 | F3: 内容 | G3: 金額 | H3: 内容 | I3: 金額 | J3: 内容 | K3: 金額 | L3: 内容 | M3: 金額 | N3: 内容 | O3: 金額
A4: 食費
A13: 小計 | C13: =SUM(C4:C12) -> ¥0 | E13: =SUM(E4:E12) -> ¥0 | G13: =SUM(G4:G12) -> ¥0 | I13: =SUM(I4:I12) -> ¥0 | K13: =SUM(K4:K12) -> ¥0 | M13: =SUM(M4:M12) -> ¥0 | O13: =SUM(O4:O12) -> ¥0 | P13: =SUM(C13:O13) -> ¥0
A14: 日用雑貨
A21: 小計 | C21: =SUM(C14:C20) -> ¥0 | E21: =SUM(E14:E20) -> ¥0 | G21: =SUM(G14:G20) -> ¥0 | I21: =SUM(I14:I20) -> ¥0 | K21: =SUM(K14:K20) -> ¥0 | M21: =SUM(M14:M20) -> ¥0 | O21: =SUM(O14:O20) -> ¥0 | P21: =SUM(C21:O21) -> ¥0
A22: 子供費
A27: 小計 | C27: =SUM(C22:C26) -> ¥0 | E27: =SUM(E22:E26) -> ¥0 | G27: =SUM(G22:G26) -> ¥0 | I27: =SUM(I22:I26) -> ¥0 | K27: =SUM(K22:K26) -> ¥0 | M27: =SUM(M22:M26) -> ¥0 | O27: =SUM(O22:O26) -> ¥0 | P27: =SUM(C27:O27) -> ¥0
A28: 特別出費
A33: 小計 | C33: =SUM(C28:C32) -> ¥0 | E33: =SUM(E28:E32) -> ¥0 | G33: =SUM(G28:G32) -> ¥0 | I33: =SUM(I28:I32) -> ¥0 | K33: =SUM(K28:K32) -> ¥0 | M33: =SUM(M28:M32) -> ¥0 | O33: =SUM(O28:O32) -> ¥0 | P33: =SUM(C33:O33) -> ¥0
A34: 臨時収入 | P34: =SUM(C34:O34) -> ¥0
A35: 支出合計 | C35: =SUM(C13,C21,C27,C33,-C34) -> ¥0 | E35: =SUM(E13,E21,E27,E33,-E34) -> ¥0 | G35: =SUM(G13,G21,G27,G33,-G34) -> ¥0 | I35: =SUM(I13,I21,I27,I33,-I34) -> ¥0 | K35: =SUM(K13,K21,K27,K33,-K34) -> ¥0 | M35: =SUM(M13,M21,M27,M33,-M34) -> ¥0 | O35: =SUM(O13,O21,O27,O33,-O34) -> ¥0 | P35: =SUM(C35:O35) -> ¥0
A36: メモ

Sheet 第5週目
A1: 第 5 週目
B2: =IF(第1週目!$B$2="","",IF(第4週目!N2<DATE(家計簿表紙!$B$1,家計簿表紙!$D$1,家計簿表紙!$F$1),第4週目!N2+1,"")) ->  | C2: =TEXT(B2,"(aaaa)") ->  | D2: =IF(第1週目!$B$2="","",IF(B2<DATE(家計簿表紙!$B$1,家計簿表紙!$D$1,家計簿表紙!$F$1),B2+1,"")) ->  | E2: =TEXT(D2,"(aaaa)") ->  | F2: =IF(第1週目!$B$2="","",IF(D2<DATE(家計簿表紙!$B$1,家計簿表紙!$D$1,家計簿表紙!$F$1),D2+1,"")) ->  | G2: =TEXT(F2,"(aaaa)") ->  | H2: 集計
B3: 内容 | C3: 金額 | D3: 内容 | E3: 金額 | F3: 内容 | G3: 金額
A4: 食費
A13: 小計 | C13: =SUM(C4:C12) -> ¥0 | E13: =SUM(E4:E12) -> ¥0 | G13: =SUM(G4:G12) -> ¥0 | H13: =SUM(C13:G13) -> 0
A14: 日用雑貨
A21: 小計 | C21: =SUM(C14:C20) -> ¥0 | E21: =SUM(E14:E20) -> ¥0 | G21: =SUM(G14:G20) -> ¥0 | H21: =SUM(C21:G21) -> 0
A22: 子供費
A27: 小計 | C27: =SUM(C22:C26) -> ¥0 | E27: =SUM(E22:E26) -> ¥0 | G27: =SUM(G22:G26) -> ¥0 | H27: =SUM(C27:G27) -> 0
A28: 特別出費
A33: 小計 | C33: =SUM(C28:C32) -> ¥0 | E33: =SUM(E28:E32) -> ¥0 | G33: =SUM(G28:G32) -> ¥0 | H33: =SUM(C33:G33) -> 0
A34: 臨時収入 | H34: =SUM(C34:G34) -> ¥0
A35: 支出合計 | C35: =SUM(C13,C21,C27,C33,-C34) -> ¥0 | E35: =SUM(E13,E21,E27,E33,-E34) -> ¥0 | G35: =SUM(G13,G21,G27,G33,-G34) -> ¥0 | H35: =SUM(C35:G35) -> 0
A36: メモ

Sheet 家計簿表紙使い方
A1: 締め日 | B1: =IF(H1="","",YEAR(H1)) -> 2008 | C1: 年 | D1: =IF(H1="","",MONTH(H1)) -> 12 | E1: 月 | F1: =IF(H1="","",DAY(H1)) -> 24 | G1: 日 | H1: =IF(第1週目使い方!$B$2="","",IF(OR(AND(D3=1,F3=30),AND(D3=1,F3=31)),(DATE(YEAR(H3),MONTH(H3)+2,1)-1),DATE(YEAR(H3),MONTH(H3)+1,DAY(H3)-1))) -> 2008-12-24
A3: 開始年月日 | B3: 2008 | C3: 年 | D3: 11 | E3: 月 | F3: 25 | G3: 日 | H3: =IF(OR(B3="",D3="",F3=""),"",DATE($B$3,$D$3,$F$3)) -> 2008-11-25

Sheet 収支表使い方
B1: ※薄い灰色のセルは計算式が入っています。何も入力しないでください。
B2: =家計簿表紙使い方!B3 -> 2008 | C2: 年 | D2: =家計簿表紙使い方!D3 -> 11 | E2: 月分収支表
B4: 今月自由に使えるお金 | G4: =C14-H21-M30-C30 -> 78500 | H4: 円 | J4: 今月の収支 | M4: =C14-I21-M30-D30-H30 -> 77640 | N4: 円
B5: （A-B（予算）-C-D(予算）) | J5: （A-B（実際）-C-D(実際）-E)
B7: 収入 A | G7: 支出Ⅰ B (流動性ありの支出) | L7: 支出Ⅱ C (固定金額支出)
B8: 項目 | C8: 金額 | D8: 月日 | G8: 項目 | H8: 予算額 | I8: 実際額 | J8: 月日 | L8: 項目 | M8: 金額 | N8: 月日
B9: 給料（夫） | C9: ¥300,000 | D9: 2008-11-25 | G9: 電気 | H9: ¥8,000 | I9: ¥9,800 | L9: 住居費 | M9: ¥98,000
B10: 給料（妻） | C10: ¥30,000 | D10: 2008-11-25 | G10: ガス | H10: ¥8,000 | I10: ¥7,300 | L10: 管理費 | M10: ¥13,000
G11: 水道 | H11: ¥4,000 | I11: ¥3,400 | L11: 駐車場 | M11: ¥10,000
G12: 電話 | H12: ¥7,000 | I12: ¥6,800 | L12: 新聞 | M12: ¥4,000
B13: 繰越金 | C13: ¥6,300 | G13: 携帯電話 | H13: ¥3,000 | I13: ¥2,700 | L13: 受信料 | M13: ¥2,500
B14: 合計 | C14: =SUM(C9:C13) -> ¥336,300 | G14: プロバイダー | H14: ¥1,200 | I14: ¥1,500 | L14: 保育料 | M14: ¥23,600
G15: ガソリン | H15: ¥5,000 | I15: ¥3,000 | L15: 通園バス | M15: ¥3,500
L16: サッカー | M16: ¥3,000
L17: スイミング | M17: ¥6,000
L18: 子ども保険 | M18: ¥1,000
L19: 医療保険 | M19: 天引き
B20: 特別支出 D | G20: 貯蓄 | L20: 終身保険 | M20: 天引き
B21: 項目 | C21: 予算額 | D21: 実際額 | E21: 月日 | G21: 合計 | H21: =SUM(H9:H20) -> ¥36,200 | I21: =SUM(I9:I20) -> ¥34,500
B22: 自動車保険 | C22: ¥40,000 | D22: ¥37,800 | E22: 2008-11-26 | L22: カード支払い
B23: パパ誕生日 | C23: ¥10,000 | G23: 週間集計表 E
B24: ケーキ | D24: ¥3,500 | E24: 2008-11-25 | G24: 項目 | H24: 金額 | I24: 残高
B25: プレゼント | D25: ¥4,000 | E25: 2008-11-25 | G25: 第1週目 | H25: =第1週目使い方!P35 -> ¥7,830 | I25: =G4-H25 -> ¥70,670
B26: 3学期給食 | C26: ¥7,000 | D26: ¥6,430 | E26: 2008-12-09 | G26: 第2週目 | H26: ¥0 | I26: =G4-(H25+H26) -> ¥70,670
G27: 第3週目 | H27: ¥0 | I27: =G4-(H25+H26+H27) -> ¥70,670
G28: 第4週目 | H28: ¥0 | I28: =G4-(H25+H26+H27+H28) -> ¥70,670
G29: 第5週目 | H29: ¥0 | I29: =G4-(H25+H26+H27+H28+H29) -> ¥70,670
B30: 合計 | C30: =SUM(C22:C29) -> ¥57,000 | D30: =SUM(D22:D29) -> ¥51,730 | G30: 合計 | H30: =SUM(H25:H29) -> ¥7,830 | L30: 合計 | M30: =SUM(M9:M29) -> ¥164,600

Sheet 第1週目使い方
A1: 第 1 週目
B2: =IF(OR(家計簿表紙使い方!$B$3="",家計簿表紙使い方!$D$3="",家計簿表紙使い方!$F$3=""),"",DATE(家計簿表紙使い方!$B$3,家計簿表紙使い方!$D$3,家計簿表紙使い方!$F$3)) -> 2008-11-25 | C2: =TEXT(B2,"(aaaa)") -> (Tuesday) | D2: =IF($B$2="","",IF(B2<DATE(家計簿表紙使い方!$B$1,家計簿表紙使い方!$D$1,家計簿表紙使い方!$F$1),B2+1,"")) -> 2008-11-26 | E2: =TEXT(D2,"(aaaa)") -> (Wednesday) | F2: =IF($B$2="","",IF(D2<DATE(家計簿表紙使い方!$B$1,家計簿表紙使い方!$D$1,家計簿表紙使い方!$F$1),D2+1,"")) -> 2008-11-27 | G2: =TEXT(F2,"(aaaa)") -> (Thursday) | H2: =IF($B$2="","",IF(F2<DATE(家計簿表紙使い方!$B$1,家計簿表紙使い方!$D$1,家計簿表紙使い方!$F$1),F2+1,"")) -> 2008-11-28 | I2: =TEXT(H2,"(aaaa)") -> (Friday) | J2: =IF($B$2="","",IF(H2<DATE(家計簿表紙使い方!$B$1,家計簿表紙使い方!$D$1,家計簿表紙使い方!$F$1),H2+1,"")) -> 2008-11-29 | K2: =TEXT(J2,"(aaaa)") -> (Saturday) | L2: =IF($B$2="","",IF(J2<DATE(家計簿表紙使い方!$B$1,家計簿表紙使い方!$D$1,家計簿表紙使い方!$F$1),J2+1,"")) -> 2008-11-30 | M2: =TEXT(L2,"(aaaa)") -> (Sunday) | N2: =IF($B$2="","",IF(L2<DATE(家計簿表紙使い方!$B$1,家計簿表紙使い方!$D$1,家計簿表紙使い方!$F$1),L2+1,"")) -> 2008-12-01 | O2: =TEXT(N2,"(aaaa)") -> (Monday) | P2: 集計
B3: 内容 | C3: 金額 | D3: 内容 | E3: 金額 | F3: 内容 | G3: 金額 | H3: 内容 | I3: 金額 | J3: 内容 | K3: 金額 | L3: 内容 | M3: 金額 | N3: 内容 | O3: 金額
A4: 食費 | B4: スーパー | C4: ¥2,780
B5: チキン | C5: ¥1,200
A13: 小計 | C13: =SUM(C4:C12) -> ¥3,980 | E13: =SUM(E4:E12) -> ¥0 | G13: =SUM(G4:G12) -> ¥0 | I13: =SUM(I4:I12) -> ¥0 | K13: =SUM(K4:K12) -> ¥0 | M13: =SUM(M4:M12) -> ¥0 | O13: =SUM(O4:O12) -> ¥0 | P13: =SUM(C13:O13) -> ¥3,980
A14: 日用雑貨 | D14: ドラッグA | E14: ¥2,800
A21: 小計 | C21: =SUM(C14:C20) -> ¥0 | E21: =SUM(E14:E20) -> ¥2,800 | G21: =SUM(G14:G20) -> ¥0 | I21: =SUM(I14:I20) -> ¥0 | K21: =SUM(K14:K20) -> ¥0 | M21: =SUM(M14:M20) -> ¥0 | O21: =SUM(O14:O20) -> ¥0 | P21: =SUM(C21:O21) -> ¥2,800
A22: 子供費 | F22: 靴下 | G22: ¥1,050
A27: 小計 | C27: =SUM(C22:C26) -> ¥0 | E27: =SUM(E22:E26) -> ¥0 | G27: =SUM(G22:G26) -> ¥1,050 | I27: =SUM(I22:I26) -> ¥0 | K27: =SUM(K22:K26) -> ¥0 | M27: =SUM(M22:M26) -> ¥0 | O27: =SUM(O22:O26) -> ¥0 | P27: =SUM(C27:O27) -> ¥1,050
A28: 特別出費
A33: 小計 | C33: =SUM(C28:C32) -> ¥0 | E33: =SUM(E28:E32) -> ¥0 | G33: =SUM(G28:G32) -> ¥0 | I33: =SUM(I28:I32) -> ¥0 | K33: =SUM(K28:K32) -> ¥0 | M33: =SUM(M28:M32) -> ¥0 | O33: =SUM(O28:O32) -> ¥0 | P33: =SUM(C33:O33) -> ¥0
A34: 臨時収入 | P34: =SUM(C34:O34) -> ¥0
A35: 支出合計 | C35: =SUM(C13,C21,C27,C33,-C34) -> ¥3,980 | E35: =SUM(E13,E21,E27,E33,-E34) -> ¥2,800 | G35: =SUM(G13,G21,G27,G33,-G34) -> ¥1,050 | I35: =SUM(I13,I21,I27,I33,-I34) -> ¥0 | K35: =SUM(K13,K21,K27,K33,-K34) -> ¥0 | M35: =SUM(M13,M21,M27,M33,-M34) -> ¥0 | O35: =SUM(O13,O21,O27,O33,-O34) -> ¥0 | P35: =SUM(C35:O35) -> ¥7,830
A36: メモ
